Cogmind - Beta 13 X1 *** ADVENTURER MODE // 2023.06.26 @ 21:50:46 Player: Sardaukar Result: Destroyed by G-47 Trooper with Particle Gun Performance ------------- Evolutions (2) 1000 Regions Visited (3) 600 Robots Destroyed (62) 310 Value Destroyed (1379) 1379 Prototype IDs (8) 160 Alien Tech Used (0) 0 Bonus (39) 39 TOTAL SCORE: 3488 Bonus ------- High Alert Combat Kills 39 Cogmind --------- Core Integrity 0/550 Matter 300/300 Energy 100/100 System Corruption 3% Temperature Cool (9) Movement Core (350) Ox6 Location -8/Materials Parts ------- > --- POWER (1) -------- (None) > --- PROPULSION (4) --- (None) > --- UTILITY (3) ------ Large Storage Unit Improved Targeting Computer > --- WEAPON (3) ------- (None) > --- INVENTORY (15) --- Light Ion Engine Light Deuterium Engine Peak State ------------ > --- POWER ------------ Light Nuclear Core > --- PROPULSION ------- Aluminum Leg Aluminum Leg Aluminum Leg > --- UTILITY ---------- Improved Heat Sink Large Storage Unit Improved Targeting Computer > --- WEAPON ----------- Improved EM Shotgun Improved Medium Laser Improved Medium Laser > --- INVENTORY -------- Light Ion Engine Light Deuterium Engine [Rating: 21] Favorites ----------- Power Light Ion Engine Engine Light Ion Engine Power Core Light Nuclear Core Propulsion Light Treads Treads Light Treads Leg Aluminum Leg Utility Large Storage Unit Device Improved Heat Sink Storage Large Storage Unit Processor Improved Targeting Computer Weapon Improved Medium Laser Energy Gun Improved Medium Laser Energy Cannon Light EM Pulse Cannon Ballistic Gun Light Assault Rifle Launcher Grenade Launcher Build | -11 -10 -9 -8 ------- Run | Jun Mat Mat Mat Slots Evolved 4 | . . 2 2 Power . | . . . . Propulsion 2 | . . 1 1 Utility 1 | . . . 1 Weapon 1 | . . 1 . Parts Attached 23 | 5 5 7 6 Power 4 | 1 . 2 1 Engine 3 | 1 . 2 . Core 1 | . . . 1 Reactor . | . . . . Propulsion 6 | 2 . 1 3 Treads 3 | 2 . 1 . Leg 3 | . . . 3 Wheel . | . . . . Hover . | . . . . Flight . | . . . . Utility 4 | 1 2 . 1 Device 1 | . . . 1 Storage 2 | 1 1 . . Processor 1 | . 1 . . Hackware . | . . . . Protection . | . . . . Artifact . | . . . . Weapon 9 | 1 3 4 1 Energy Gun 3 | . . 3 . Energy Cannon 1 | . 1 . . Ballistic Gun 1 | 1 . . . Ballistic Cannon . | . . . . Launcher 4 | . 2 1 1 Special Weapon . | . . . . Impact Weapon . | . . . . Slashing Weapon . | . . . . Piercing Weapon . | . . . . Special Melee Weapon . | . . . . Unidentified Prototypes 1 | . . 1 . Parts Lost 16 | . . 7 9 Power 3 | . . 2 1 Propulsion 5 | . . 2 3 Utility 1 | . . . 1 Weapon 7 | . . 3 4 Highest Loss Streak 9 | . . 3 9 To Critical Strikes . | . . . . Average Slot Usage (%) 78 | . 97 73 67 Engine 5 | . 14 3 . Core 2 | . . . 7 Treads 15 | . 28 18 2 Leg 5 | . . . 14 Device 1 | . . . 4 Storage 11 | . 14 11 9 Processor 10 | . 12 11 9 Energy Gun 12 | . . 15 20 Energy Cannon 1 | . 3 . . Ballistic Gun 5 | . 14 4 . Launcher 6 | . 9 9 . Naked Turns . | . . . . Heaviest Build 38 | 9 28 32 38 Greatest Support 40 | 40 40 40 30 Greatest Overweight (x) 6 | . . 1 6 Average Overweight (x) . | . . . 1 Largest Inventory Capacity 15 | 8 15 15 15 Average Capacity 14 | 7 14 15 15 Most Carried 3 | . 1 1 3 Average Carried . | . . . 2 Final Capacity 15 | 8 15 15 15 Final Carried 2 | . 1 . 2 Class Distribution -------------------- 44% | Mutant 34% | Gunner 18% | Scavenger-Gunner Dominant Class ---------------- Mutant | -10/Materials Gunner | -9/Materials Scavenger-Gunner | -8/Materials Resources | -11 -10 -9 -8 ----------- Run | Jun Mat Mat Mat Matter Collected 694 | 252 64 328 50 Remotely . | . . . . Salvage Created 2099 | 90 312 781 916 Parts 146 | 5 35 63 43 Haulers Intercepted 4 | . 2 2 . Recyclers Shooed 1 | . . 1 . Parts Field Recycled . | . . . . Retrieved Matter . | . . . . Parts Self-Destructed . | . . . . Prevented . | . . . . Kills | -11 -10 -9 -8 ------- Run | Jun Mat Mat Mat Combat Hostiles Destroyed 29 | . 3 12 14 Guns 23 | . . 10 13 AOE 6 | . 3 2 1 Classes Destroyed 13 | 1 7 3 2 Worker 3 | . 2 . 1 Builder 11 | . 4 6 1 Tunneler 1 | . 1 . . Hauler 4 | . 2 2 . Recycler 5 | 1 1 1 2 Mechanic 1 | . 1 . . Operator 1 | . . . 1 Watcher 7 | . 2 3 2 Swarmer 5 | . 3 . 2 Grunt 17 | . . 8 9 Brawler 2 | . . 1 1 Duelist 1 | . . . 1 Sentry 4 | . . 3 1 Best Kill Streak 6 | 1 4 5 6 Combat Bots Only 5 | . 3 3 5 Max Kills in Single Turn 5 | 1 2 5 3 Gunslinging 2 | . . 1 2 Exploded 2 | . 2 1 1 Melee . | . . . . Uniques/NPCs Destroyed . | . . . . Combat | -11 -10 -9 -8 -------- Run | Jun Mat Mat Mat Damage Taken 2176 | . 166 693 1317 Core 679 | . . 127 552 Absorbed by Shields . | . . . . Ignored by Resistances 572 | . 50 195 327 Core Remaining (%) 89 | 100 100 68 . Volleys Fired 111 | 2 23 39 47 Largest 3 | 1 2 3 3 Hottest 157 | 20 76 157 157 Shots Fired 222 | 2 31 83 106 Gun 188 | 2 10 71 105 Cannon 5 | . 5 . . Launcher 29 | . 16 12 1 Special . | . . . . Kinetic 24 | 2 10 12 . Thermal 125 | . . 46 79 Explosive 29 | . 16 12 1 Electromagnetic 44 | . 5 13 26 Robot Hit Streak 30 | 2 12 15 30 Robot Miss Streak 3 | . 1 2 3 Penetration Max . | . . . . Secondary Targets 7 | . . 2 5 Max Gunslinging Chain 2 | . . 1 2 Shots Hit Robots 166 | 2 22 62 80 Core Hits 97 | 2 21 32 42 Critical Kills . | . . . . Critical Parts Destroyed . | . . . . Critical Strikes 12 | . 1 2 9 Burn 11 | . . 2 9 Corrupt 1 | . 1 . . Melee Attacks . | . . . . Impact . | . . . . Slashing . | . . . . Piercing . | . . . . Sneak Attacks . | . . . . Combat Hostiles . | . . . . Follow-up Attacks . | . . . . Damage Inflicted 4162 | 16 812 1633 1701 Guns 2361 | 16 56 859 1430 Cannons 87 | . 87 . . Explosions 1694 | . 669 774 251 Melee . | . . . . Ramming 20 | . . . 20 Kinetic 148 | 16 56 76 . Thermal 1727 | . . 574 1153 Explosive 1527 | . 669 741 117 Electromagnetic 740 | . 87 242 411 Impact . | . . . . Slashing . | . . . . Piercing . | . . . . Highest Corruption 3 | . . . 3 Average Corruption 3 | . . . 3 Corruption Purged . | . . . . Corruption Blocked . | . . . . Effects 4 | . . . 4 Message Errors 3 | . . . 3 Data Loss (minor) 1 | . . . 1 Overload Shots . | . . . . Overflow Damage 182 | . 14 168 . Projectiles . | . . . . Explosions 182 | . 14 168 . Melee . | . . . . Knockbacks 1 | . . . 1 Impact 1 | . . . 1 Kinetic . | . . . . Secondary . | . . . . Self-Inflicted Damage 400 | . 103 275 22 Shots 15 | . 5 8 2 Rammed 11 | . . . 11 Targets Rammed 17 | . . . 17 Kicked 6 | . . . 6 Crushed . | . . . . Highest Temperature 287 | . 72 287 250 Average Temperature 82 | . 26 103 76 Received Heat Transfer 1056 | . . 237 819 Effects 1 | . . 1 . Energy Bleed 1 | . . 1 . Siege Activations . | . . . . Robots Corrupted . | . . . . Combat Hostiles . | . . . . Parts Fried 4 | . 2 . 2 Impact Corruptions . | . . . . Robots Melted . | . . . . Combat Hostiles . | . . . . Parts Melted 7 | . . 3 4 Heat Transferred 4418 | . . 1332 3086 Parts Sabotaged . | . . . . Parts Stolen . | . . . . Parts Stripped . | . . . . Power Chain Reactions 5 | . . 2 3 Missiles Intercepted . | . . . . Alert | -11 -10 -9 -8 ------- Run | Jun Mat Mat Mat Peak Influence 475 | 5 183 401 475 Initial 123 | . 2 42 123 Average 186 | 2 60 215 277 Maximum Alert Level 2 | . . 2 2 Low Security (%) 50 | 100 100 34 19 Level 1 48 | . . 64 76 Level 2 1 | . . . 4 Level 3 . | . . . . Level 4 . | . . . . Level 5 . | . . . . High Security . | . . . . Max Security . | . . . . Squads Dispatched 7 | . . 4 3 Investigation 4 | . . 3 1 Extermination . | . . . . Reinforcement 2 | . . 1 1 Assault . | . . . . Garrison 1 | . . . 1 Intercept . | . . . . Searches Triggered . | . . . . Construction Impeded . | . . . . Haulers Reinforced . | . . . . Active Scanning Responses . | . . . . Cargo Convoy Interrupts . | . . . . Stealth | -11 -10 -9 -8 --------- Run | Jun Mat Mat Mat Distress Signals 3 | . . 1 2 Communications Jammed . | . . . . Distress Signals . | . . . . Times Spotted 45 | . 7 16 22 Peak Tracking Total 4 | . 3 4 4 Tactical Retreats 2 | . . . 2 Traps | -11 -10 -9 -8 ------- Run | Jun Mat Mat Mat Traps Triggered 2 | . 2 . . Indirectly . | . . . . Trap Hack Attempts . | . . . . Triggered . | . . . . Disarmed . | . . . . Reprogrammed . | . . . . Reused . | . . . . Traps Extracted . | . . . . Installed . | . . . . Triggered . | . . . . Machines | -11 -10 -9 -8 ---------- Run | Jun Mat Mat Mat Machines Disabled 6 | . 1 5 . Max in Single Turn 2 | . 1 2 . Machines Repaired . | . . . . Machines Sabotaged . | . . . . Overloaded Fab Kills . | . . . . Hacking | -11 -10 -9 -8 --------- Run | Jun Mat Mat Mat Machines Accessed 7 | . 1 4 2 Terminals 7 | . 1 4 2 Fabricators . | . . . . Repair Stations . | . . . . Recycling Units . | . . . . Scanalyzers . | . . . . Garrison Access . | . . . . Total Hacks 23 | . 3 11 9 Successful 13 | . 1 7 5 Failed 10 | . 2 4 4 Catastrophic 1 | . . 1 . Database Lockouts . | . . . . Manual 3 | . . 3 . Terminals 23 | . 3 11 9 Fabricators . | . . . . Repair Stations . | . . . . Recycling Units . | . . . . Scanalyzers . | . . . . Garrison Access . | . . . . Terminal Hacks 11 | . 1 5 5 Record 3 | . . 1 2 Prototype ID Bank 4 | . 1 1 2 Branch Access Points 1 | . . 1 . Unreport Threat 1 | . . 1 . Maintenance Status 1 | . . 1 . Zone Layout 1 | . . . 1 Fabricator Hacks . | . . . . Repair Station Hacks . | . . . . Recycling Unit Hacks . | . . . . Scanalyzer . | . . . . Garrison Access Hacks . | . . . . Unauthorized Hacks 2 | . . 2 . Terminals 2 | . . 2 . Detonate 1 | . . 1 . Search 1 | . . 1 . Fabricators . | . . . . Repair Stations . | . . . . Recycling Units . | . . . . Scanalyzers . | . . . . Garrison Access . | . . . . Data Cores Recovered 1 | . . . 1 Used . | . . . . Hacking Detections 6 | . 1 3 2 Full Trace Events 4 | . 1 1 2 Feedback Events . | . . . . Feedback Blocked . | . . . . Robot Schematics Acquired . | . . . . Robots Built . | . . . . Authchips . | . . . . Time . | . . . . Total Robot Build Rating . | . . . . Part Schematics Acquired . | . . . . Parts Built . | . . . . Authchips . | . . . . Time . | . . . . Total Part Build Rating . | . . . . Parts Repaired . | . . . . Time . | . . . . Parts Recycled . | . . . . Recycled Matter . | . . . . Retrieved Matter . | . . . . Retrieved Components . | . . . . Parts Scanalyzed . | . . . . Part Schematics Acquired . | . . . . Parts Damaged . | . . . . Bothacking | -11 -10 -9 -8 ------------ Run | Jun Mat Mat Mat Used RIF Installer . | . . . . Robots Hacked . | . . . . Non-combat . | . . . . Combat . | . . . . Robot Hacks Applied . | . . . . Relay Couplers Released . | . . . . Fabnet Peak Effective % . | . . . . Robots Rewired . | . . . . Allies Hacked . | . . . . Hacks Repelled . | . . . . Allies | -11 -10 -9 -8 -------- Run | Jun Mat Mat Mat Total Allies . | . . . . Largest Group . | . . . . Highest-Rated Group . | . . . . Highest-Rated Ally . | . . . . Total Orders . | . . . . Ally Attacks . | . . . . Total Damage . | . . . . Kills . | . . . . Allies Corrupted . | . . . . Allies Melted . | . . . . Intel | -11 -10 -9 -8 ------- Run | Jun Mat Mat Mat Robot Analysis Total . | . . . . Derelict Logs Recovered . | . . . . Drone Launches . | . . . . Drone Recoveries . | . . . . Exploration | -11 -10 -9 -8 ------------- Run | Jun Mat Mat Mat Turns Passed 1856 | 61 529 602 664 Spaces Moved 802 | 34 291 265 212 Core 25 | 3 . . 22 Treads 647 | 31 291 265 60 Legs 130 | . . . 130 Wheels . | . . . . Hover . | . . . . Flight . | . . . . Fastest Speed 50 | 50 160 160 190 Average Speed 182 | 150 160 179 222 Slowest Speed 350 | 160 160 240 350 Overloaded Moves . | . . . . Propulsion Burnouts . | . . . . Robots Hopped . | . . . . Cave-ins Triggered 1 | . . . 1 Exploration Rate (%) 32 | 2 69 38 22 Regions Visited 3 Branch Regions . Pre-discovered Areas . | . . . . Known Exits Taken . | . . . . Unknown Exits Taken 3 | 1 1 1 . Scrap Searched . | . . . . Spaces Dug . | . . . . Terrain Destroyed 269 | . 111 138 20 Melee . | . . . . Projectile . | . . . . AOE 269 | . 111 138 20 Terrain Rammed . | . . . . Walls Destroyed . | . . . . Machines Disabled . | . . . . Actions | -11 -10 -9 -8 --------- Run | Jun Mat Mat Mat Total 974 | 40 325 323 286 Wait 13 | . 3 10 . Move 799 | 33 290 264 212 Hop . | . . . . Pick Up 8 | . 2 3 3 Fast Attach 16 | 5 4 3 4 Attach 6 | . 1 4 1 Detach . | . . . . Swap 1 | . . . 1 Drop 3 | . 2 . 1 Fire 111 | 2 23 39 47 Melee . | . . . . Ram 11 | . . . 11 Kick 6 | . . . 6 Crush . | . . . . Escape Stasis . | . . . . Rewire . | . . . . Trap . | . . . . Miscellaneous . | . . . . Route ------- -11/Junkyard -10/Materials (discovered 3 exits: *Mat x2 / [*Min]) -9/Materials (discovered 2 exits: *Mat / Min) -8/Materials History --------- Turn | Location | Event 28 | -11/Junkyard | Discovered new exit (range 15) 62 | -11/Junkyard | Entered Materials 221 | -10/Materials | Discovered new exit (range 6) 315 | -10/Materials | Build established: Mutant 336 | -10/Materials | Discovered new exit (range 16) 490 | -10/Materials | Discovered new exit (range 15) 591 | -10/Materials | Entered another Materials area 591 | -9/Materials | Evolved 2 slots: Propulsion x1, Weapon x1 892 | -9/Materials | Lost 3 parts (3w) 898 | -9/Materials | Identified exit to Mines 1147 | -9/Materials | Discovered new exit (range 16) 1193 | -9/Materials | Entered another Materials area 1193 | -8/Materials | Evolved 2 slots: Propulsion x1, Utility x1 1235 | -8/Materials | Build established: Gunner 1300 | -8/Materials | Garrison activated, responded to threat 1630 | -8/Materials | Build established: Scavenger-Gunner 1692 | -8/Materials | Crushed by falling debris 1761 | -8/Materials | Core integrity fell below 50% 1775 | -8/Materials | Lost 9 parts (1p3n1u4w) 1814 | -8/Materials | Core integrity fell below 20% 1857 | -8/Materials | Destroyed by G-47 Trooper with Particle Gun Last Messages --------------- 01755_ Slammed into G-47 Trooper. 01756_ K-01 Serf collects debris. 01758_ Slammed into G-47 Trooper. 01760_ K-01 Serf collects debris. 01762_ Slammed into G-47 Trooper. 01762_ Destabilizing: System interference. 01762_ Imp. Targeting Computer temporarily disabled. 01765_ Slammed into G-47 Trooper. 01766_ K-01 Serf collects debris. 01774_ System corrupted: Component data lost. 01776_ K-01 Serf collects debris. 01779_ Slammed into G-47 Trooper. 01784_ Critical hit (Burn: +37). 01786_ Slammed into G-47 Trooper. 01814_ Slammed into R-06 Scavenger. 01817_ J3% SKK 4=<5PJSDSV# ALJJZJEB 01835_ Slammed into A-02 Transporter. 01844_ K-01 Serf cleans the Material Compactor. 01846_ P6UQTY2D YUD=A,GE|JRAD8>Q:WCV4F 01853_ K-01 Serf cleans the Material Compactor. Map ----- +----------------------------------------------------+ | #?????????????????????????????????????????? | | ]#?????????????????????????????????????????? | | ###?????????????????????????????????????????? | | ????????????????????????????????????????????? | | ?? ????? ???????????????????????????????????? | | ?? ????? ???????????????????????????????????? | | ?? ????? ???????????????????????????????????? | | ?? #???? ???????????????????????????????????? | | ?? #???? ???????????????????????????????????? | | ?? #???? ???????????????????????????????????? | | ?? #???? ???????????? ???????????????????? | | ?# #???# #??????????? ???????????????????? | | ?# #???# #??????????? ?????? ???????????? | | ## #???# #??????????? ????? ???????????? | | #???# #??????????? ???? "???????????? | | #???# #???????????# """?? ""???????????? | | #???# #???????????# """""k """??? ??????? | | !*##### #???????????# """"" """"" ??????? | | % %#####/#########???# """ """ #?????? | | % % / T #???# #?????? | | #"%#"="# #???# #?????? | | # "#### ! #???# ##????? | | ## ##??# ! #???# #????? | | ?# #########+######### #????? | | ?# %%%%%%%%% g #????? | | ?# %% %%######### @ r #????? | | ?# % % !!#???# a #????? | | ?# !!#???############## #?????? | | ?# !!#??????????????????????????? | | ?# %% !!#??????????????????????????? | | ?########+## ||#??????????????????????????? | | ???# #% ||#??????????????????????????? | | ???# # #####??????????????????????????? | | ???# # ####???????????????????????????? | | ???# # #??????????????????????????????? | | ???######### #??????????????????????????????? | | ??????????? ??????????????????????????????? | | ???????????###??????????????????????????????? | | ????????????????????????????????????????????? | | ????????????????????????????????????????????? | | ????????????????????????????????????????????? | | ????????????????????????????????????????????? | | ????????????????????????????????????????????? | | ????????????????????????????????????????????? | | ????????????????????????????????????????????? | | ????????????????????????????????????????????? | | ????????????????????????????????????????????? | | ????????????????????????????????????????????? | | ????????????????????????????????????????????? | | ????????????????????????????????????????????? | +----------------------------------------------------+ Best States ------------- Heat Dissipation 45 Energy Generation 14 Energy Capacity 160 Matter Stores 300 Matter Capacity 300 Sight Range 16 Terrain Scan Density 10 Resistance: KI 20 Resistance: TH 20 Resistance: EX 20 Resistance: EM 20 Resistance: I 20 Resistance: S 20 Resistance: P 20 Evasion (%) 40 Targeting Accuracy 6 Recoil Reduction 2 Offensive Hacking 10 Item Schematics ----------------- None Robot Schematics ------------------ None Fabricated ------------ Nothing Alien Tech Used ----------------- None Achievements -------------- None Challenges ------------ None Game ------ Seed WarpMiningReplicator Manual? 0 Play Time 00:27:26 Cumulative 329.2 hours Start 2023.06.22 @ 04:03:53 End 2023.06.26 @ 21:50:46 Sessions 7 Manual Loads 0 Difficulty Adventurer Special Mode None Game No. 103 Rogue 7 Adventurer 73 Explorer 23 Win Type - Total 10 Types 8/1/1/0/0/0/0/0/0 Lore% 68 Gallery% 76 Achievement% 67 Wizard Run 0 Options --------- ASCII 0 Keyboard 0 Movement Mouse Keybinds 0 Fullscreen 2 Font 20/Terminus Map View 66x50 Tactical HUD 1 Map Filters NONE Filters NONE Steam 1 RUN: 5088af4f-9568-4228-96a0-78b0a0243861